bitfinex-derivatives/quotes_BTCF0:USTF0_20250814
["timestamp","ask_amount","ask_price","bid_price","bid_amount"]
[1755190143235,0.65491161,117890.0,117880.0,0.5650336]
[1755190143436,0.65591161,117890.0,117880.0,0.3484136]
[1755190143630,0.65691161,117890.0,117880.0,0.3444136]
[1755190144233,0.85691161,117890.0,117880.0,0.004]
[1755190144432,0.92401161,117890.0,117860.0,1.29259]
[1755190144642,0.03782,117880.0,117860.0,1.29259]
[1755190144940,0.17331,117880.0,117860.0,0.40715]
[1755190145230,0.25813843,117880.0,117860.0,0.40715]
[1755190145433,0.08482843,117880.0,117860.0,0.40715]
[1755190145633,0.08482843,117880.0,117870.0,0.04635]
[1755190146034,0.25450043,117880.0,117870.0,0.04635]
[1755190146536,0.25850043,117880.0,117870.0,0.04635]
[1755190146732,0.45850043,117880.0,117860.0,0.40915]
[1755190146933,0.25850043,117880.0,117860.0,0.40915]
[1755190147237,0.25850043,117880.0,117870.0,0.001]
[1755190147530,1.52188558,117880.0,117870.0,0.002]
[1755190147730,0.27768558,117880.0,117870.0,0.40915]
[1755190147934,0.27768558,117880.0,117870.0,0.2898]
[1755190148524,0.27768558,117880.0,117870.0,0.002]
[1755190148525,0.63848558,117880.0,117870.0,0.002]
[1755190149130,0.83288355,117880.0,117870.0,0.001]
[1755190149432,0.83388355,117880.0,117860.0,0.53607]
[1755190149637,0.83388355,117880.0,117870.0,0.04635]
[1755190149829,0.83288355,117880.0,117860.0,0.58142]
[1755190150029,0.83188355,117880.0,117870.0,0.001]
[1755190150237,0.83288355,117880.0,117870.0,0.002]
[1755190150431,0.83288355,117880.0,117870.0,0.001]
[1755190150634,1.6963344,117880.0,117870.0,0.001]
[1755190151542,1.69993643,117880.0,117870.0,0.001]
[1755190152134,0.84048558,117880.0,117860.0,0.001]
[1755190152344,1.69993279,117880.0,117860.0,0.3618]
[1755190152530,1.86961279,117880.0,117860.0,0.40815]
[1755190152837,1.86561279,117880.0,117860.0,0.40815]
[1755190153032,1.15605358,117880.0,117870.0,0.001]
[1755190153341,1.71905358,117880.0,117870.0,0.001]
[1755190153639,1.35724558,117880.0,117850.0,1.11650921]
[1755190153840,1.15524558,117880.0,117860.0,0.001]
[1755190154037,1.15824558,117880.0,117860.0,0.001]
[1755190154234,1.35464355,117880.0,117870.0,0.001]
[1755190154436,1.71544355,117880.0,117870.0,0.001]
[1755190155539,1.35464355,117880.0,117870.0,0.001]
[1755190155941,1.71544355,117880.0,117870.0,0.001]
[1755190156236,1.71080355,117880.0,117870.0,0.001]
[1755190156436,1.71080355,117880.0,117870.0,0.75570921]
[1755190156642,1.71080355,117880.0,117870.0,0.04635]
[1755190156643,1.51540558,117880.0,117870.0,0.04635]
[1755190156939,1.51540558,117880.0,117860.0,1.11650921]
[1755190157140,1.34473358,117880.0,117870.0,0.001]
[1755190157333,2.42557279,117880.0,117870.0,0.002]
[1755190157644,2.25509279,117880.0,117870.0,0.002]
[1755190157941,1.54573358,117880.0,117870.0,0.002]
[1755190158439,0.27568558,117880.0,117870.0,0.04835]
[1755190158640,0.27568558,117880.0,117870.0,0.75770921]
[1755190158942,0.27568558,117880.0,117870.0,0.2898]
[1755190159138,1.15344558,117880.0,117870.0,0.2898]
[1755190159333,1.15416558,117880.0,117870.0,0.2888]
[1755190159735,0.27668558,117880.0,117870.0,0.2888]
[1755190159937,0.10701358,117880.0,117870.0,0.2888]
[1755190160136,0.10701358,117880.0,117870.0,0.6506]
[1755190161840,0.14663358,117880.0,117870.0,0.60997558]
[1755190162043,0.33718558,117880.0,117870.0,0.33392429]
[1755190163141,1.21302558,117880.0,117870.0,0.40210429]
[1755190163839,1.51663494,117880.0,117870.0,0.06918]
[1755190164042,1.51663494,117880.0,117870.0,0.27946]
[1755190164238,1.54622494,117880.0,117870.0,0.2488756]
[1755190164835,2.1486769,117880.0,117860.0,0.16044]
[1755190165048,0.21012,117870.0,117860.0,0.02945037]
[1755190165343,0.21012,117870.0,117860.0,0.74114037]
[1755190165847,0.29496282,117870.0,117860.0,0.74114037]
[1755190166143,0.29496282,117870.0,117860.0,0.81059037]
[1755190166845,0.70730278,117870.0,117860.0,0.3628]
[1755190167146,0.0997,117860.0,117840.0,0.63953]
[1755190167347,1.65440847,117860.0,117840.0,0.63953]
[1755190167546,0.94504926,117860.0,117850.0,0.04984]
[1755190167748,1.02990288,117860.0,117850.0,0.04984]
[1755190167950,1.56040689,117860.0,117850.0,0.04984]
[1755190168150,2.2697661,117860.0,117850.0,0.04984]
[1755190168448,2.2707661,117860.0,117850.0,0.04984]
[1755190168743,1.56140689,117860.0,117850.0,0.04984]
[1755190168943,1.75382885,117860.0,117850.0,0.04984]
[1755190169151,1.75382885,117860.0,117850.0,0.35854]
[1755190169542,1.39302885,117860.0,117850.0,0.35854]
[1755190169948,1.39402885,117860.0,117850.0,0.36054]
[1755190170144,1.75482885,117860.0,117850.0,0.05184]
[1755190171150,1.51225689,117860.0,117850.0,0.47118]
[1755190171343,1.34255288,117860.0,117850.0,0.47118]
[1755190171843,1.45031756,117860.0,117850.0,0.47118]
[1755190172940,2.14075783,117860.0,117850.0,0.47118]
[1755190173447,1.46157825,117860.0,117850.0,0.47118]
[1755190173646,1.10077825,117860.0,117850.0,1.18133921]
[1755190173851,1.10077825,117860.0,117850.0,1.54213921]
[1755190175851,0.90411783,117860.0,117850.0,1.54213921]
[1755190176054,0.90411783,117860.0,117850.0,0.47118]
[1755190176553,0.90411783,117860.0,117850.0,0.83198]
[1755190176857,0.90411783,117860.0,117850.0,0.46048]
[1755190177151,1.78318105,117860.0,117850.0,0.05184]
[1755190177355,1.07382184,117860.0,117850.0,0.05184]
[1755190177547,1.43462184,117860.0,117850.0,0.05184]
[1755190178048,1.63133143,117860.0,117850.0,0.05184]
[1755190178652,2.33662742,117860.0,117850.0,0.47118]
[1755190179152,2.33662742,117860.0,117850.0,0.05184]
[1755190179153,2.13991783,117860.0,117850.0,0.05184]
[1755190180249,1.26491783,117860.0,117850.0,0.21228]
[1755190180553,1.26491783,117860.0,117850.0,0.47118]
[1755190181254,0.90411783,117860.0,117850.0,1.54213921]
[1755190181456,0.21367756,117860.0,117850.0,2.22364921]
[1755190182652,0.41030849,117860.0,117850.0,2.22364921]
[1755190183156,0.41030849,117860.0,117850.0,0.64153]
[1755190184056,0.41030849,117860.0,117850.0,1.35088921]
[1755190184257,0.56154547,117860.0,117850.0,0.64153]
[1755190185059,0.21367756,117860.0,117850.0,0.83198]
[1755190185362,0.21367756,117860.0,117850.0,1.54133921]
[1755190186553,0.36491454,117860.0,117850.0,1.54133921]
[1755190186948,0.36491454,117860.0,117850.0,0.83198]
[1755190187358,0.36491454,117860.0,117850.0,0.05184]
[1755190187359,1.79639677,117860.0,117850.0,0.05184]
[1755190187557,1.25654157,117860.0,117850.0,0.41264]
[1755190187756,1.25654157,117860.0,117850.0,0.64153]
[1755190187956,1.08683756,117860.0,117850.0,0.64153]
[1755190188266,1.23806429,117860.0,117850.0,0.64153]
[1755190188863,0.36490429,117860.0,117850.0,1.35088921]
[1755190189358,0.36490429,117860.0,117850.0,0.64153]
[1755190189359,0.21367756,117860.0,117850.0,0.64153]
[1755190189962,0.41030849,117860.0,117850.0,0.64153]
[1755190190462,1.1196677,117860.0,117850.0,0.05184]
[1755190190665,1.1204677,117860.0,117850.0,0.05184]
[1755190191161,1.4358843,117860.0,117850.0,0.05184]
[1755190191762,0.21447756,117860.0,117850.0,0.05184]
[1755190192262,0.21367756,117860.0,117850.0,0.05184]
[1755190192465,1.08871756,117860.0,117850.0,0.05184]
[1755190193365,1.23996509,117860.0,117850.0,0.21228]
[1755190193960,1.23912509,117860.0,117850.0,0.28073]
[1755190194262,1.08787756,117860.0,117850.0,0.28073]
[1755190194458,0.21367756,117860.0,117850.0,0.99008921]
[1755190194764,0.21367756,117860.0,117850.0,0.28073]
[1755190195151,0.21367756,117860.0,117850.0,0.05184]
[1755190195152,0.92303677,117860.0,117850.0,0.05184]
[1755190195462,1.28383677,117860.0,117850.0,0.002]
[1755190195664,1.45354078,117860.0,117850.0,0.002]
[1755190195867,1.45434078,117860.0,117850.0,0.002]
[1755190197364,0.74418157,117860.0,117850.0,0.002]
[1755190197563,1.61666157,117860.0,117850.0,0.002]
[1755190197769,1.61666157,117860.0,117850.0,0.0512]
[1755190199066,1.61666157,117860.0,117840.0,0.94885921]
[1755190199067,0.04591,117850.0,117840.0,0.94885921]
[1755190199263,0.47559693,117850.0,117840.0,0.94885921]
[1755190199669,0.56045415,117850.0,117840.0,0.94885921]
[1755190200265,0.57179213,117850.0,117840.0,0.94985921]
[1755190200462,0.52588213,117850.0,117840.0,0.94985921]
[1755190200668,0.16508213,117850.0,117840.0,1.31065921]
[1755190200868,0.16508213,117850.0,117840.0,1.31145921]
[1755190201069,0.16508213,117850.0,117840.0,1.36065921]
[1755190201269,0.16608213,117850.0,117840.0,1.34374491]
[1755190202574,0.16608213,117850.0,117840.0,1.11433161]
[1755190203268,0.16608213,117850.0,117840.0,1.11353161]
[1755190203469,0.40773409,117850.0,117840.0,1.11353161]
[1755190204073,0.40773409,117850.0,117840.0,1.08565153]
[1755190204274,0.40773409,117850.0,117840.0,1.63522143]
[1755190204573,0.40773409,117850.0,117840.0,0.99871222]
[1755190204778,0.40773409,117850.0,117840.0,1.16536222]
[1755190205179,0.40773409,117850.0,117840.0,1.11735453]
[1755190205379,0.40773409,117850.0,117840.0,1.82671374]
[1755190205880,0.48862394,117860.0,117850.0,0.48405]
[1755190206076,0.12782394,117860.0,117850.0,2.14699984]
[1755190206377,0.01918515,117880.0,117870.0,0.19908]
[1755190206584,0.01918515,117880.0,117870.0,0.87785489]
[1755190206784,0.10403517,117880.0,117870.0,1.71730489]
[1755190206993,0.11442877,117880.0,117870.0,2.07810489]
[1755190207283,0.02957875,117880.0,117870.0,2.16290379]
[1755190207489,0.11442877,117880.0,117870.0,2.16190379]
[1755190207791,0.11442877,117880.0,117870.0,2.16270379]
[1755190207792,0.12944471,117880.0,117870.0,2.16270379]
[1755190207980,0.3608,117900.0,117870.0,2.07790489]
[1755190208181,0.47042369,117900.0,117890.0,0.82840921]
[1755190208488,0.57406067,117900.0,117890.0,0.83140921]
[1755190208686,0.57406067,117900.0,117880.0,0.3608]
[1755190208983,0.21326067,117900.0,117890.0,1.94175921]
[1755190209183,0.22535868,117900.0,117890.0,1.2324]
[1755190209379,0.22535868,117900.0,117890.0,2.10840921]
[1755190209584,0.22535868,117900.0,117890.0,2.08053769]
[1755190209784,0.22535868,117900.0,117890.0,2.07953769]
[1755190209985,0.11373499,117900.0,117890.0,2.07953769]
[1755190210186,0.11573499,117900.0,117890.0,2.08353769]
[1755190210690,0.03089936,117900.0,117890.0,2.18339769]
[1755190211287,0.02080135,117900.0,117890.0,2.18339769]
[1755190211489,0.02080135,117900.0,117890.0,1.47403848]
[1755190211691,0.02080135,117900.0,117890.0,2.18339769]
[1755190212292,0.02080135,117900.0,117890.0,2.18439769]
[1755190212590,0.01980135,117900.0,117890.0,2.18039769]
[1755190212786,0.31107258,117900.0,117890.0,0.82766]
[1755190213090,0.31107258,117900.0,117890.0,1.70074]
[1755190213483,0.15153258,117900.0,117890.0,2.41009921]
[1755190213694,0.13273123,117900.0,117890.0,2.41009921]
[1755190214289,0.08682123,117900.0,117890.0,2.41009921]
[1755190214697,0.002,117900.0,117890.0,2.41009921]
[1755190215090,0.10774266,117900.0,117890.0,2.41009921]
[1755190215491,0.10774266,117900.0,117890.0,1.70074]
[1755190215691,0.10774266,117900.0,117890.0,2.41009921]
[1755190215888,0.002,117900.0,117890.0,2.49488321]
[1755190216097,0.10574266,117910.0,117900.0,0.46186]
[1755190216284,0.42445631,117930.0,117920.0,0.19535]
[1755190216491,0.42445631,117930.0,117920.0,0.98410921]
[1755190216795,0.55467244,117930.0,117920.0,1.09848921]
[1755190216992,0.39513244,117930.0,117920.0,0.38913]
[1755190217191,0.47844404,117930.0,117920.0,1.09848921]
[1755190217593,0.47844404,117930.0,117920.0,1.09948921]
[1755190217594,0.47944404,117930.0,117920.0,1.09948921]
[1755190217893,0.28273283,117930.0,117920.0,1.09948921]
[1755190218388,0.29322052,117930.0,117920.0,1.09848921]
[1755190219098,0.29222052,117930.0,117920.0,1.09748921]
[1755190219291,0.24731052,117930.0,117920.0,1.10048921]
[1755190219494,0.08692123,117930.0,117920.0,1.46228921]
[1755190219700,0.08692123,117930.0,117920.0,0.75293]
[1755190219890,0.08692123,117930.0,117920.0,1.46228921]
[1755190221100,0.0021,117930.0,117920.0,1.54705161]
[1755190221289,0.10762125,117930.0,117920.0,1.54785161]
[1755190221495,0.1509016,117940.0,117930.0,0.15101]
[1755190221692,0.04591,117960.0,117950.0,0.18264]
[1755190221998,0.04591,117960.0,117950.0,2.12351921]
[1755190222186,0.72259737,117970.0,117960.0,0.07406]
[1755190222386,0.72259737,117970.0,117960.0,1.25279921]
[1755190222590,1.00077703,117970.0,117960.0,0.48937942]
[1755190222799,0.80406582,117970.0,117960.0,0.12757942]
[1755190222995,0.80406582,117970.0,117950.0,0.3608]
[1755190222996,0.28951512,117970.0,117950.0,0.3608]
[1755190223302,0.46642,117960.0,117950.0,1.29527]
[1755190223602,0.46642,117960.0,117950.0,1.29427]
[1755190224105,0.55119809,117960.0,117950.0,1.29399]
[1755190224293,0.55119809,117960.0,117950.0,1.29599]
[1755190224800,0.55119809,117960.0,117950.0,0.34142498]
[1755190225303,0.55119809,117960.0,117950.0,0.36042498]
[1755190225696,0.55119809,117960.0,117950.0,0.42090498]
[1755190225895,0.55119809,117960.0,117950.0,0.41890498]
[1755190226101,0.55219809,117960.0,117950.0,0.42190498]
[1755190226406,0.55219809,117960.0,117950.0,0.42290498]
[1755190226802,0.55219809,117960.0,117950.0,0.42090498]
[1755190228098,0.91299809,117960.0,117950.0,0.002]
[1755190228398,1.6231573,117960.0,117950.0,0.002]
[1755190228602,1.77379342,117960.0,117950.0,0.002]
[1755190229098,0.87105421,117960.0,117950.0,0.002]
[1755190230103,0.87025421,117960.0,117950.0,0.002]
[1755190231101,0.87025421,117960.0,117950.0,0.75682921]
[1755190231102,0.89159421,117960.0,117950.0,0.75682921]
[1755190231299,0.89159421,117960.0,117950.0,0.021]
[1755190231804,0.89159421,117960.0,117950.0,0.01988]
[1755190232003,0.74095809,117960.0,117950.0,0.002]
[1755190232398,1.4503173,117960.0,117950.0,0.002]
[1755190232595,0.13057197,117970.0,117950.0,0.7236]
[1755190232905,0.23541421,117960.0,117950.0,0.3628]
[1755190233105,0.15063612,117960.0,117950.0,0.7236]
[1755190233497,0.08477809,117960.0,117950.0,1.43295921]
[1755190233699,0.08477809,117960.0,117950.0,1.66829921]
[1755190234198,0.08477809,117960.0,117950.0,1.71679921]
[1755190234400,0.23571036,117960.0,117950.0,2.58183921]
[1755190234704,0.53238036,117960.0,117950.0,2.58183921]
[1755190234903,0.31117725,117960.0,117950.0,2.58183921]
[1755190235295,0.16024498,117960.0,117950.0,2.58183921]
[1755190235602,0.16024498,117960.0,117950.0,2.58283921]
[1755190235804,0.16024498,117960.0,117950.0,1.87348]
[1755190236098,0.16024498,117960.0,117950.0,2.58283921]
[1755190236099,0.19043068,117960.0,117950.0,2.58283921]
[1755190236303,0.19043068,117960.0,117950.0,2.58183921]
[1755190236503,0.08577809,117960.0,117950.0,2.58383921]
[1755190237096,0.13397809,117960.0,117950.0,2.58383921]
[1755190237291,0.30896809,117960.0,117950.0,2.58383921]
[1755190238096,0.53384132,117960.0,117950.0,0.96094]
[1755190238307,0.53384132,117960.0,117950.0,2.46698921]
[1755190238502,0.53384132,117960.0,117950.0,2.53605921]
[1755190238701,0.53384132,117960.0,117950.0,2.58455921]
[1755190238899,0.38244809,117960.0,117950.0,2.58455921]
[1755190239301,0.5340185,117960.0,117950.0,2.58455921]
[1755190240096,0.38244809,117960.0,117950.0,2.58455921]
[1755190241312,0.13397809,117960.0,117950.0,2.58455921]
[1755190241905,0.38244809,117960.0,117950.0,2.58455921]
[1755190242302,0.57963421,117960.0,117950.0,2.58455921]
[1755190242617,0.76532421,117960.0,117950.0,2.58455921]
[1755190243305,0.28296421,117960.0,117950.0,2.58455921]
[1755190243507,0.50615421,117960.0,117950.0,2.58455921]
[1755190243812,0.30896809,117960.0,117950.0,2.58455921]
[1755190244110,0.56813809,117960.0,117950.0,2.58455921]
[1755190244709,0.56813809,117960.0,117950.0,1.8752]
[1755190245008,0.56813809,117960.0,117950.0,2.58455921]
[1755190245009,0.76532421,117960.0,117950.0,2.58455921]
[1755190245610,0.87158382,117960.0,117950.0,0.7246]
[1755190245813,0.87158382,117960.0,117950.0,1.58852]
[1755190246004,0.56893809,117960.0,117950.0,0.7246]
[1755190246312,0.56813809,117960.0,117950.0,0.7246]
[1755190247007,0.56893809,117960.0,117950.0,0.7246]
[1755190247811,0.56813809,117960.0,117950.0,0.7246]
[1755190248407,0.56813809,117960.0,117950.0,0.003]
[1755190248408,0.56893809,117960.0,117950.0,0.003]
[1755190248716,0.73849809,117960.0,117950.0,0.003]
[1755190249513,0.73769809,117960.0,117950.0,0.003]
[1755190249714,1.60877809,117960.0,117950.0,0.003]
[1755190250106,0.73769809,117960.0,117950.0,0.003]
[1755190251113,0.73849809,117960.0,117950.0,0.003]
[1755190251312,1.64543401,117960.0,117950.0,0.003]
[1755190251512,2.00623401,117960.0,117950.0,0.003]
[1755190251714,1.2968748,117960.0,117950.0,0.003]
[1755190252113,1.4968748,117960.0,117950.0,0.003]
[1755190252520,1.40938373,117960.0,117950.0,0.003]
[1755190253317,2.09354469,117960.0,117950.0,0.003]
[1755190253910,2.09354469,117960.0,117950.0,0.001]
[1755190253911,2.09174469,117960.0,117950.0,0.001]
[1755190254110,2.09274469,117960.0,117950.0,0.002]
[1755190254516,2.09174469,117960.0,117950.0,0.001]
[1755190254718,2.16195059,117960.0,117950.0,0.002]
[1755190255619,2.16395059,117960.0,117950.0,0.002]
[1755190256313,2.16195059,117960.0,117950.0,0.002]
[1755190256518,2.16495059,117960.0,117950.0,0.002]
[1755190256715,1.86828059,117960.0,117940.0,0.65517975]
[1755190256925,1.23104,117950.0,117940.0,0.31379985]
[1755190257216,1.23104,117950.0,117940.0,0.2751598]
[1755190257406,1.400608,117950.0,117940.0,0.2751598]
[1755190257611,1.31509809,117950.0,117940.0,0.48362]
[1755190257819,1.31509809,117950.0,117940.0,1.1624071]
[1755190258022,1.34566809,117950.0,117940.0,1.1624071]
[1755190258216,1.34666809,117950.0,117940.0,1.1365419]
[1755190258421,1.35519809,117950.0,117940.0,1.1365419]
[1755190258917,1.35519809,117950.0,117940.0,1.1375419]
[1755190259225,1.35519809,117950.0,117940.0,1.0673219]
[1755190259519,1.35519809,117950.0,117940.0,0.35696269]
[1755190259724,1.35719809,117950.0,117940.0,0.003]
[1755190260315,2.09435864,117960.0,117940.0,0.41071]
[1755190260712,2.09435864,117960.0,117950.0,0.04991]
[1755190260916,2.17914032,117960.0,117950.0,0.04991]
[1755190261118,0.03157,117950.0,117940.0,0.60548]
[1755190261319,0.05429,117950.0,117940.0,0.60548]
[1755190261711,0.11635168,117950.0,117940.0,1.50486921]
[1755190261919,0.08478168,117950.0,117940.0,1.50486921]
[1755190262111,0.08478168,117950.0,117940.0,1.50566921]
[1755190262516,0.002,117950.0,117940.0,1.50566921]
[1755190262733,0.61946415,117960.0,117940.0,1.26098921]
[1755190263019,0.61946415,117960.0,117950.0,1.98289921]
[1755190263224,0.70424943,117960.0,117950.0,2.03280921]
[1755190263424,0.70424943,117960.0,117950.0,2.27748921]
[1755190263621,0.70324943,117960.0,117950.0,2.27648921]
[1755190263823,0.46039007,117960.0,117950.0,2.27648921]
[1755190264328,0.46139007,117960.0,117950.0,2.27748921]
[1755190264715,0.46139007,117960.0,117950.0,2.24963214]
[1755190264921,0.46339007,117960.0,117950.0,2.22925668]
[1755190265227,0.46339007,117960.0,117950.0,2.22905668]
[1755190265628,0.46337085,117960.0,117950.0,2.0685998]
[1755190265926,0.46337085,117960.0,117950.0,2.0695998]
[1755190267331,0.46337085,117960.0,117950.0,2.20197574]
[1755190267530,0.35328521,117960.0,117950.0,2.20197574]
[1755190267724,0.01026481,117970.0,117960.0,0.43371]
[1755190267921,0.24285936,117980.0,117960.0,2.18563825]
[1755190268124,0.24285936,117980.0,117970.0,2.25713921]
[1755190268528,0.32763745,117980.0,117970.0,2.22913921]
[1755190269130,0.32763745,117980.0,117970.0,2.22713921]
[1755190269323,0.32763745,117980.0,117970.0,2.27704921]
[1755190269519,0.32763745,117980.0,117970.0,1.41256921]
[1755190269724,0.73260745,117980.0,117970.0,2.32908318]
[1755190269922,0.48974809,117980.0,117970.0,2.32608318]
[1755190270218,0.28200809,117980.0,117970.0,2.32608318]
[1755190270420,0.30093101,117980.0,117970.0,2.32608318]
[1755190270633,0.30193101,117980.0,117970.0,2.00719285]
[1755190271025,0.53156808,117980.0,117970.0,2.00719285]
[1755190271324,0.53156808,117980.0,117970.0,2.36799285]
[1755190271533,0.53156808,117980.0,117970.0,2.37099285]
[1755190271534,0.4810708,117980.0,117970.0,2.37099285]
[1755190271829,0.2838408,117980.0,117970.0,2.37099285]
[1755190272420,0.2838408,117980.0,117970.0,1.66163364]
[1755190272626,0.4994108,117980.0,117970.0,2.37099285]
[1755190272823,0.84340174,117980.0,117970.0,2.35061909]
[1755190273225,0.52658174,117980.0,117970.0,2.1214122]
[1755190273632,0.34744195,117980.0,117970.0,2.1214122]
[1755190273834,0.34744195,117980.0,117970.0,2.09382277]
[1755190274922,0.10470101,117980.0,117970.0,2.09382277]
[1755190275322,0.10470101,117980.0,117970.0,2.16404277]
[1755190275724,0.34739491,117980.0,117970.0,2.16404277]
[1755190275923,0.34739491,117980.0,117970.0,2.33850277]
[1755190276133,0.54458729,117980.0,117970.0,2.33850277]
[1755190276628,0.54458729,117980.0,117970.0,2.33930277]
[1755190276833,0.83686,118020.0,118010.0,0.15771]
[1755190277133,0.83686,118020.0,118010.0,0.80439628]
[1755190277531,0.94050033,118020.0,118010.0,0.80439628]
[1755190278236,0.94350033,118020.0,118010.0,0.80539628]
[1755190279038,0.94250033,118020.0,118010.0,0.80539628]
[1755190279832,0.94250033,118020.0,118010.0,0.77781108]
[1755190280130,0.94050033,118020.0,118010.0,0.77681108]
[1755190280335,0.94150033,118020.0,118010.0,1.03058108]
[1755190280525,0.94150033,118020.0,118010.0,1.73994029]
[1755190280932,0.87182033,118020.0,118010.0,1.01021074]
[1755190281139,0.94150033,118020.0,118010.0,1.01021074]
[1755190281432,0.94150033,118020.0,118010.0,1.71956995]
[1755190281433,0.46544033,118020.0,118010.0,1.71956995]
[1755190281827,0.46544033,118020.0,118010.0,2.08036995]
[1755190281828,0.10464033,118020.0,118010.0,2.08036995]
[1755190282230,0.34730316,118020.0,118010.0,2.08036995]
[1755190282534,0.27045316,118020.0,118010.0,2.08116995]
[1755190283129,0.27045316,118020.0,118010.0,2.08036995]
[1755190283327,0.32036316,118020.0,118010.0,2.08036995]
[1755190284234,0.27045316,118020.0,118010.0,2.08036995]
[1755190284623,0.27045316,118020.0,118010.0,1.37101074]
[1755190284827,0.43048,118040.0,118010.0,1.90441995]
[1755190285037,0.91790747,118040.0,118030.0,0.07932]
[1755190285338,0.83885838,118040.0,118030.0,1.07218]
[1755190285536,1.05815838,118040.0,118030.0,1.12119]
[1755190285735,0.98847838,118040.0,118030.0,1.12119]
[1755190285933,0.98847838,118040.0,118030.0,1.09361465]
[1755190286242,0.99147838,118040.0,118030.0,2.16377386]
[1755190286539,0.86808246,118040.0,118030.0,1.75396386]
[1755190286736,0.88692753,118040.0,118030.0,1.80297386]
[1755190286933,0.58370006,118040.0,118030.0,1.80297386]
[1755190287134,0.58370006,118040.0,118030.0,2.16377386]
[1755190287332,0.51008006,118040.0,118030.0,2.16677386]
[1755190288440,0.50808006,118040.0,118030.0,2.16677386]
[1755190288641,0.43442,118050.0,118040.0,0.48341]
[1755190288843,0.61862,118050.0,118040.0,0.48341]
[1755190289137,0.70334063,118050.0,118040.0,0.48341]
[1755190289731,0.79982157,118050.0,118040.0,1.19276921]
[1755190290239,0.79982157,118050.0,118040.0,1.19376921]
[1755190290742,0.81856544,118050.0,118040.0,1.19376921]
[1755190291243,0.89218544,118050.0,118040.0,1.19376921]
[1755190291742,0.89218544,118050.0,118040.0,0.48441]
[1755190292538,0.46431544,118050.0,118040.0,0.48441]
[1755190292733,0.46431544,118050.0,118040.0,1.19376921]
[1755190293638,0.63436544,118050.0,118040.0,1.19376921]
[1755190293850,0.75365544,118050.0,118040.0,1.19376921]
[1755190294340,0.90486014,118050.0,118040.0,1.19376921]
[1755190295035,0.90486014,118050.0,118040.0,0.48441]
[1755190295239,1.09264014,118050.0,118040.0,0.48441]
[1755190295744,0.94143544,118050.0,118040.0,0.48441]
[1755190295945,0.94143544,118050.0,118040.0,0.85908]
[1755190296140,0.89218544,118050.0,118040.0,0.85908]
[1755190296341,0.94143544,118050.0,118040.0,1.34249]
[1755190296747,0.94143544,118050.0,118040.0,0.85908]
[1755190297141,0.94143544,118050.0,118040.0,1.10556]
[1755190297341,0.94143544,118050.0,118040.0,1.1804]
[1755190297542,0.94243544,118050.0,118040.0,1.1804]
[1755190298249,0.94143544,118050.0,118040.0,1.1804]
[1755190298847,0.94143544,118050.0,118040.0,0.48441]
[1755190299047,0.94143544,118050.0,118040.0,1.05274]
[1755190299248,0.94143544,118050.0,118040.0,0.93829]
[1755190299450,0.94143544,118050.0,118040.0,0.8576]
[1755190299846,1.65159465,118050.0,118040.0,0.8576]
[1755190300047,1.89368447,118050.0,118040.0,0.8576]
[1755190300261,1.24009171,118050.0,118040.0,2.05036921]
[1755190300449,0.96858678,118050.0,118040.0,2.05036921]
[1755190300644,0.86277033,118050.0,118040.0,2.05036921]
[1755190301243,0.93012946,118050.0,118040.0,2.05036921]
[1755190301451,0.52365946,118050.0,118040.0,2.41196921]
[1755190301847,0.64841798,118050.0,118040.0,2.41196921]
[1755190302144,0.29463309,118050.0,118040.0,2.41296921]
[1755190303455,0.18877911,118050.0,118040.0,2.41296921]
[1755190304350,0.29463309,118050.0,118040.0,2.41316921]
[1755190304544,0.15121998,118070.0,118050.0,0.28109]
[1755190304744,0.27770256,118070.0,118060.0,2.04073921]
[1755190304944,0.32695256,118070.0,118060.0,2.04073921]
[1755190305150,0.58170525,118070.0,118060.0,2.04073921]
[1755190305352,0.49801142,118070.0,118060.0,2.04073921]
[1755190305545,0.27871142,118070.0,118060.0,2.40153921]
[1755190305740,0.18935283,118070.0,118060.0,2.40153921]
[1755190306740,0.3608,118100.0,118090.0,0.07932]
[1755190306741,0.1842,118100.0,118090.0,0.07932]
[1755190306945,0.49570506,118100.0,118090.0,2.12930921]
[1755190307252,0.58040416,118100.0,118090.0,1.41995]
[1755190307442,0.50678416,118100.0,118090.0,1.41995]
[1755190307641,0.50678416,118100.0,118090.0,2.12930921]
[1755190307854,0.50678416,118100.0,118090.0,1.41995]
[1755190308044,0.71015969,118100.0,118090.0,1.41995]
[1755190308550,0.78118323,118100.0,118090.0,1.41995]
[1755190309152,0.78218323,118100.0,118090.0,1.41995]
[1755190309457,0.78218323,118100.0,118090.0,2.12930921]
[1755190309856,0.30506323,118100.0,118090.0,2.12930921]
[1755190310153,0.38081296,118100.0,118090.0,2.12930921]
[1755190310348,0.30506323,118100.0,118090.0,2.12930921]
[1755190310550,0.35431323,118100.0,118090.0,2.12930921]
[1755190310750,0.35331323,118100.0,118090.0,2.12930921]
[1755190311752,0.78118323,118100.0,118090.0,1.41971]
[1755190312051,0.46967817,118100.0,118080.0,0.43564]
[1755190312250,0.55293875,118090.0,118080.0,0.46704081]
[1755190312452,0.47712,118090.0,118080.0,1.01036]
[1755190312646,0.3359024,118090.0,118070.0,1.07015921]
[1755190312852,0.47712,118080.0,118070.0,0.38779]
[1755190313057,0.47712,118080.0,118070.0,1.24399]
[1755190313359,0.04925,118080.0,118070.0,1.97021921]
[1755190313559,0.33045462,118080.0,118070.0,1.97021921]
[1755190314154,0.28120462,118080.0,118070.0,1.97101921]
[1755190314351,0.26433462,118080.0,118070.0,1.97101921]
[1755190314551,0.26433462,118080.0,118070.0,2.22505821]
[1755190314552,0.19651628,118080.0,118070.0,2.22505821]
[1755190314854,0.15289002,118090.0,118070.0,2.12353321]
[1755190315053,0.19910002,118090.0,118080.0,1.07015921]
[1755190315269,0.23758195,118090.0,118080.0,1.07015921]
[1755190315457,0.23658195,118090.0,118080.0,1.07015921]
[1755190315863,0.23658195,118090.0,118080.0,1.77951842]
[1755190316161,0.10632123,118090.0,118080.0,3.12205422]
[1755190316354,0.39429535,118100.0,118080.0,3.20670212]
[1755190316555,0.39429535,118100.0,118090.0,1.94247921]
[1755190316757,0.47898011,118100.0,118090.0,1.94247921]
[1755190317151,0.46041196,118100.0,118090.0,1.82799755]
[1755190317354,0.26389568,118100.0,118090.0,1.82799755]
[1755190317556,0.40709,118120.0,118090.0,2.08271775]
[1755190317861,0.66965437,118120.0,118100.0,0.3608]
[1755190318153,1.14064949,118120.0,118110.0,1.58207921]
[1755190318358,1.14064949,118120.0,118110.0,1.55451982]
[1755190318551,1.14064949,118120.0,118110.0,1.55351982]